fUST/lending_fUST_20241128
["ID","MTS","AMOUNT","RATE_DAILY","PERIOD"]
[343621059,1732753855233,-174.780875,0.00031427,7]
[343621060,1732753855244,-174.780875,0.00031427,7]
[343621061,1732753855254,-174.780875,0.00031427,7]
[343621062,1732753855264,-174.780875,0.00031427,7]
[343621063,1732753855277,-174.780875,0.00031427,7]
[343621064,1732753855287,-174.780881,0.00031427,7]
[343621065,1732753855302,-151.813813,0.00031428,7]
[343621066,1732753855313,-151.0,0.00031428,7]
[343621067,1732753855322,-151.0,0.00031428,7]
[343621068,1732753855332,-151.823686,0.00031428,7]
[343621069,1732753855342,-151.0,0.00031428,2]
[343621070,1732753855353,-151.0,0.00031428,2]
[343621071,1732753855363,-151.0,0.00031428,2]
[343621072,1732753855373,-161.660856,0.00031428,2]
[343621073,1732753855383,-151.0,0.00031428,7]
[343621074,1732753855393,-187.218668,0.00031428,7]
[343621075,1732753855402,-318.904617,0.00031428,7]
[343621076,1732753855411,-318.904617,0.00031428,7]
[343621077,1732753855421,-318.904619,0.00031428,7]
[343621078,1732753855430,-372.100039,0.00031428,7]
[343621079,1732753855440,-372.100039,0.00031428,7]
[343621080,1732753855451,-372.100039,0.00031428,7]
[343621081,1732753855461,-372.100039,0.00031428,7]
[343621082,1732753855470,-372.100039,0.00031428,7]
[343621083,1732753855480,-372.100039,0.00031428,7]
[343621084,1732753855490,-372.100039,0.00031428,7]
[343621085,1732753855500,-372.100039,0.00031428,7]
[343621086,1732753855510,-372.100039,0.00031428,7]
[343621087,1732753855521,-372.100031,0.00031428,7]
[343621088,1732753855531,-151.0,0.00031428,7]
[343621089,1732753855546,-151.0,0.00031428,7]
[343621090,1732753855558,-151.0,0.00031428,7]
[343621091,1732753855567,-151.0,0.00031428,7]
[343621092,1732753855577,-151.0,0.00031428,7]
[343621093,1732753855586,-151.0,0.00031428,7]
[343621094,1732753855595,-151.0,0.00031428,7]
[343621095,1732753855605,-151.0,0.00031428,7]
[343621096,1732753855614,-151.0,0.00031428,7]
[343621097,1732753855623,-273.9317,0.00031428,7]
[343621098,1732753855634,-151.0,0.00031428,7]
[343621099,1732753855643,-273.9317,0.00031428,7]
[343621100,1732753855655,-151.0,0.00031428,7]
[343621101,1732753855665,-236.131432,0.00031428,7]
[343621102,1732753855674,-273.9317,0.00031428,7]
[343621103,1732753855684,-273.9317,0.00031428,7]
[343621104,1732753855694,-273.9317,0.00031428,7]
[343621105,1732753855703,-273.9317,0.00031428,7]
[343621106,1732753855713,-273.9317,0.00031428,7]
[343621107,1732753855723,-273.9317,0.00031428,7]
[343621108,1732753855733,-273.9317,0.00031428,7]
[343621109,1732753855743,-273.93171,0.00031428,7]
[343621110,1732753855753,-207.576488,0.00031428,7]
[343621111,1732753855763,-1646.683998,0.00031428,7]
[343621112,1732753855773,-1646.683998,0.00031428,7]
[343621113,1732753855783,-1646.683998,0.00031428,7]
[343621114,1732753855798,-1646.683998,0.00031428,7]
[343621115,1732753855808,-1646.683998,0.00031428,7]
[343621116,1732753855818,-1646.683998,0.00031428,7]
[343621117,1732753855828,-1646.683998,0.00031428,7]
[343621118,1732753855837,-1646.683998,0.00031428,7]
[343621119,1732753855846,-1646.683998,0.00031428,7]
[343621120,1732753855856,-1646.684006,0.00031428,7]
[343621121,1732753855866,-151.0,0.00031428,7]
[343621122,1732753855875,-151.0,0.00031428,7]
[343621123,1732753855885,-151.0,0.00031428,7]
[343621124,1732753855895,-151.0,0.00031428,7]
[343621125,1732753855905,-567.84768298,0.0003143,7]
[343621126,1732753855915,-567.84768298,0.0003143,7]
[343621127,1732753855925,-2082029.35426637,0.0003143,10]
[343621128,1732754072702,220.477346,0.00013973,2]
[343621129,1732754072944,220.477346,0.00020447,2]
[343621136,1732754726443,300.0,0.00022,7]
[343621137,1732754757297,300.0,0.00022,8]
[343621138,1732754768346,211.442975,0.00013973,2]
[343621139,1732754768564,211.442975,0.00020447,2]
[343621140,1732754804160,300.0,0.00022,8]
[343621141,1732754835009,300.0,0.00022,7]
[343621145,1732754961972,300.0,0.00022002,7]
[343621146,1732754967565,300.0,0.00022002,8]
[343621147,1732755007133,280.0,0.00022002,7]
[343621148,1732755027235,230.0,0.00022002,8]
[343621776,1732755043680,-167.132589,0.00022775,2]
[343621778,1732755043691,-153.54672734,0.00022925,2]
[343621780,1732755043702,-1018.77942626,0.00023025,2]
[343622005,1732755045967,-6831.42857354,0.00023025,2]
[343622007,1732755045978,-300.0,0.00023943,2]
[343622009,1732755045987,-300.0,0.00023943,2]
[343622011,1732755045997,-151.0,0.00023944,2]
[343622013,1732755046006,-151.0,0.00023944,7]
[343622015,1732755046016,-151.0,0.00023944,7]
[343622017,1732755046025,-151.0,0.00023944,7]
[343622019,1732755046035,-271.068924,0.00023944,7]
[343622021,1732755046044,-271.068924,0.00023944,7]
[343622023,1732755046054,-271.068924,0.00023944,7]
[343622025,1732755046068,-271.068924,0.00023944,7]
[343622027,1732755046078,-271.068924,0.00023944,7]
[343622029,1732755046087,-271.068924,0.00023944,7]
[343622031,1732755046097,-1565.17887881,0.00023944,2]
[343622033,1732755046106,-151.0,0.0002399,7]
[343622035,1732755046115,-272.70152,0.00024,7]
[343622038,1732755046125,-151.0,0.00024,7]
[343622040,1732755046135,-152.604309,0.00024,7]
[343622042,1732755046144,-271.068924,0.00024,7]
[343622044,1732755046154,-271.068924,0.00024,7]
[343622046,1732755046164,-271.068924,0.00024,7]
[343622047,1732755046174,-271.068924,0.00024,7]
[343622050,1732755046183,-271.068924,0.00024,7]
[343622052,1732755046193,-271.068924,0.00024,7]
[343622054,1732755046202,-406.98017744,0.00024155,2]
[343622056,1732755046212,-167.06570059,0.00024155,2]
[343622058,1732755046222,-48264.35036587,0.00024156,2]
[343622466,1732755465843,190.298677,0.00013973,2]
[343622467,1732755466067,190.298677,0.00020447,2]
[343622468,1732755658142,1150.0,0.00022,2]
[343622470,1732755742496,250.27,0.00022002,2]
[343622478,1732756165488,184.631504,0.00013973,2]
[343622479,1732756165726,184.631504,0.00020447,2]
[343622511,1732756238580,-314.20373128,0.00024,14]
[343622512,1732756238590,-168.45626872,0.00024,2]
[343622636,1732756243461,-126.16325388,0.00024,2]
[343622639,1732756243472,-300.0,0.00024055,2]
[343622641,1732756243486,-73.83347862,0.00024055,2]
[343622906,1732756246255,-226.16652138,0.00024055,2]
[343622908,1732756246265,-415.60046624,0.00024056,2]
[343622910,1732756246278,-48.08249847,0.00024056,2]
[343622912,1732756246288,-72511.91750153,0.00024056,2]
[343623140,1732756862983,177.253123,0.00013973,2]
[343623141,1732756863304,177.253123,0.00020447,2]
[343623143,1732756990880,-1000.0,0.00031388,120]
[343623144,1732756990907,-409.77642333,0.00031388,120]
[343623145,1732756990933,-4054.3534702,0.00031388,30]
[343623146,1732756990963,-14753.37386863,0.00031388,30]
[343623147,1732756990991,-535.0,0.00031388,120]
[343623148,1732756991016,-1000.0,0.00031388,120]
[343623149,1732756991041,-375.5,0.00031388,120]
[343623150,1732757004835,-212.8417378,0.00028729,30]
[343623151,1732757004861,-300.0,0.00029,30]
[343623152,1732757004887,-592.167,0.0003,120]
[343623153,1732757004913,-300.0,0.0003,30]
[343623154,1732757004937,-151.0,0.0003,120]
[343623155,1732757004961,-2848.3769,0.00030137,120]
[343623156,1732757004988,-942.0,0.00030179,120]
[343623157,1732757005015,-942.0,0.00030189,120]
[343623158,1732757005040,-942.0,0.00030199,120]
[343623159,1732757005065,-318.0047,0.0003023,30]
[343623160,1732757005092,-359.9,0.000306,31]
[343623161,1732757005117,-359.9,0.000306,31]
[343623162,1732757005142,-359.9,0.000306,31]
[343623163,1732757005167,-359.9,0.000306,31]
[343623164,1732757005192,-359.9,0.000306,31]
[343623165,1732757005218,-359.9,0.000306,31]
[343623166,1732757005243,-359.9,0.000306,31]
[343623167,1732757005270,-359.9,0.000306,31]
[343623168,1732757005296,-359.9,0.000306,31]
[343623169,1732757005432,-359.9,0.000306,31]
[343623170,1732757005458,-359.9,0.000306,31]
[343623171,1732757005489,-359.9,0.000306,31]
[343623172,1732757005512,-300.0,0.00031,30]
[343623173,1732757005535,-304.6760457,0.00031217,30]
[343623174,1732757005560,-942.0,0.00031261,120]
[343623175,1732757005585,-942.0,0.00031271,120]
[343623176,1732757005610,-942.0,0.00031281,120]
[343623177,1732757005635,-942.0,0.0003132,120]
[343623178,1732757005660,-942.0,0.0003133,120]
[343623179,1732757005688,-947.9,0.0003136,120]
[343623180,1732757005715,-942.0,0.0003137,120]
[343623181,1732757005762,-1000.0,0.00031506,30]
[343623182,1732757005786,-1000.0,0.00031506,30]
[343623183,1732757005811,-1500.2093453,0.00031509,120]
[343623184,1732757005837,-359.9,0.000317,31]
[343623185,1732757005861,-359.9,0.000317,31]
[343623186,1732757005886,-359.9,0.000317,31]
[343623187,1732757005911,-359.9,0.000317,31]
[343623188,1732757005936,-359.9,0.000317,31]
[343623189,1732757005961,-359.9,0.000317,31]
[343623190,1732757005987,-359.9,0.000317,31]
[343623191,1732757006015,-359.9,0.000317,31]
[343623192,1732757006040,-359.9,0.000317,31]
[343623193,1732757006064,-359.9,0.000317,31]
[343623194,1732757006089,-359.9,0.000317,31]
[343623195,1732757006113,-359.9,0.000317,31]
[343623196,1732757006138,-359.9,0.000317,31]
[343623197,1732757006163,-359.9,0.000317,31]
[343623198,1732757006188,-359.9,0.000317,31]
[343623199,1732757006214,-359.9,0.000317,31]
[343623200,1732757006240,-359.9,0.000317,31]
[343623201,1732757006266,-359.9,0.000317,31]
[343623202,1732757006291,-359.9,0.000317,31]
[343623203,1732757006316,-359.9,0.000317,31]
[343623204,1732757006342,-359.9,0.000317,31]
[343623205,1732757006366,-359.9,0.000317,31]
[343623206,1732757006391,-359.9,0.000317,31]
[343623207,1732757006416,-359.9,0.000317,31]
[343623208,1732757006443,-510.78618645,0.00031945,120]
[343623209,1732757006470,-425.6834756,0.00031962,30]
[343623210,1732757006498,-500.0,0.00032,120]
[343623211,1732757006522,-207.0,0.0003218,33]
[343623212,1732757006546,-153.0,0.00032411,30]
[343623213,1732757006570,-153.0,0.00032411,30]
[343623214,1732757006593,-153.0,0.00032411,30]
[343623215,1732757006617,-153.0,0.00032411,30]
[343623216,1732757006642,-150.0,0.0003246,120]
[343623217,1732757006667,-359.9,0.000327,31]
[343623218,1732757006695,-359.9,0.000327,31]
[343623219,1732757006729,-359.9,0.000327,31]
[343623220,1732757006764,-359.9,0.000327,31]
[343623221,1732757006796,-359.9,0.000327,31]
[343623222,1732757006826,-359.9,0.000327,31]
[343623223,1732757006858,-359.9,0.000327,31]
[343623224,1732757006889,-359.9,0.000327,31]
[343623225,1732757006922,-359.9,0.000327,31]
[343623226,1732757006953,-359.9,0.000327,31]
[343623227,1732757006982,-359.9,0.000327,31]
[343623228,1732757007013,-359.9,0.000327,31]
[343623229,1732757007045,-359.9,0.000327,31]
[343623230,1732757007075,-359.9,0.000327,31]
[343623231,1732757007103,-359.9,0.000327,31]
[343623232,1732757007134,-359.9,0.000327,31]
[343623233,1732757007162,-359.9,0.000327,31]
[343623234,1732757007192,-359.9,0.000327,31]
[343623235,1732757007221,-359.9,0.000327,31]
[343623236,1732757007249,-359.9,0.000327,31]
[343623237,1732757007276,-359.9,0.000327,31]
[343623238,1732757007303,-359.9,0.000327,31]
[343623239,1732757007331,-359.9,0.000327,31]
[343623240,1732757007361,-359.9,0.000327,31]
[343623241,1732757007390,-719.91,0.00032876,120]
[343623242,1732757007420,-719.91,0.00032876,120]
[343623243,1732757007447,-719.91,0.00032876,120]
[343623244,1732757007475,-719.91,0.00032876,120]
[343623245,1732757007505,-719.91,0.00032876,120]
[343623246,1732757007533,-719.91,0.00032876,120]
[343623247,1732757007563,-719.91,0.00032876,120]
[343623248,1732757007588,-719.91,0.00032876,120]
[343623249,1732757007613,-719.91,0.00032876,120]
[343623250,1732757007638,-719.91,0.00032876,120]
[343623251,1732757007668,-719.91,0.00032876,120]
[343623252,1732757007699,-719.91,0.00032876,120]
[343623253,1732757007728,-719.91,0.00032876,120]
[343623254,1732757007755,-719.91,0.00032876,120]
[343623255,1732757007782,-719.91,0.00032876,120]
[343623256,1732757007810,-719.91,0.00032876,120]
[343623257,1732757007838,-719.91,0.00032876,120]
[343623258,1732757007869,-719.91,0.00032876,120]
[343623259,1732757007896,-719.91,0.00032876,120]
[343623260,1732757007923,-719.91,0.00032876,120]
[343623261,1732757007950,-719.91,0.00032876,120]
[343623262,1732757007978,-719.91,0.00032876,120]
[343623263,1732757008007,-719.91,0.00032876,120]
[343623264,1732757008033,-720.00832728,0.00032876,120]
[343623265,1732757008060,-500.0,0.00032877,120]
[343623266,1732757008086,-6138.79,0.00032877,30]
[343623267,1732757008118,-212.8417378,0.00032959,30]
[343623268,1732757008145,-400.0,0.00033,120]
[343623269,1732757008172,-500.0,0.00033,30]
[343623270,1732757008348,-500.0,0.00033,30]
[343623271,1732757008373,-500.0,0.00033,30]
[343623272,1732757008399,-502.99704392,0.00033,30]
[343623273,1732757008423,-700.0,0.00033,30]
[343623274,1732757008448,-800.0,0.00033,30]
[343623275,1732757008472,-800.0,0.00033,30]
[343623276,1732757008497,-800.0,0.00033,30]
[343623277,1732757008521,-800.0,0.00033,30]
[343623278,1732757008544,-800.0,0.00033,30]
[343623279,1732757008570,-500.0,0.00033,30]
[343623280,1732757008594,-800.0,0.00033,30]
[343623281,1732757008620,-800.0,0.00033,30]
[343623282,1732757008644,-500.0,0.00033,30]
[343623283,1732757008670,-800.0,0.00033,30]
[343623284,1732757008694,-800.0,0.00033,30]
[343623285,1732757008717,-800.0,0.00033,30]
[343623286,1732757008742,-800.0,0.00033,30]
[343623287,1732757008765,-800.0,0.00033,30]
[343623288,1732757008788,-800.0,0.00033,30]
[343623289,1732757008811,-500.0,0.00033,30]
[343623290,1732757008834,-800.0,0.00033,30]
[343623291,1732757008857,-800.0,0.00033,30]
[343623292,1732757008879,-800.0,0.00033,30]
[343623293,1732757008901,-800.0,0.00033,30]
[343623294,1732757008925,-864.71206455,0.00033,30]
[343623295,1732757008949,-800.0,0.00033,30]
[343623296,1732757008973,-500.0,0.00033,30]
[343623297,1732757008996,-855.05885594,0.00033,30]
[343623298,1732757009020,-800.0,0.00033,30]
[343623299,1732757009044,-916.33475152,0.00033,30]
[343623300,1732757009068,-800.0,0.00033,30]
[343623301,1732757009092,-1500.0,0.00033,30]
[343623302,1732757009115,-800.0,0.00033,30]
[343623303,1732757009139,-1500.0,0.00033,30]
[343623304,1732757009163,-800.0,0.00033,30]
[343623305,1732757009187,-1500.0,0.00033,30]
[343623306,1732757009213,-800.0,0.00033,30]
[343623307,1732757009236,-1500.0,0.00033,30]
[343623308,1732757009263,-800.0,0.00033,30]
[343623309,1732757009287,-800.0,0.00033,30]
[343623310,1732757009311,-1500.0,0.00033,30]
[343623311,1732757009336,-1366.98537592,0.00033,30]
[343623312,1732757009360,-1500.0,0.00033,30]
[343623313,1732757009384,-1500.0,0.00033,30]
[343623314,1732757009408,-1500.0,0.00033,30]
[343623315,1732757009431,-1500.0,0.00033,30]
[343623316,1732757009455,-1500.0,0.00033,30]
[343623317,1732757009479,-1500.0,0.00033,30]
[343623318,1732757009508,-1500.0,0.00033,30]
[343623319,1732757009532,-1500.0,0.00033,30]
[343623320,1732757009556,-2000.0,0.00033,30]
[343623321,1732757009582,-1300.0,0.00033,30]
[343623322,1732757009608,-1300.0,0.00033,30]
[343623323,1732757009633,-1300.0,0.00033,30]
[343623324,1732757009659,-1300.0,0.00033,30]
[343623325,1732757009684,-1300.0,0.00033,30]
[343623326,1732757009709,-1300.0,0.00033,30]
[343623327,1732757009734,-1300.0,0.00033,30]
[343623328,1732757009760,-1300.0,0.00033,30]
[343623329,1732757009783,-1300.0,0.00033,30]
[343623330,1732757009807,-1300.0,0.00033,30]
[343623331,1732757009831,-1300.0,0.00033,30]
[343623332,1732757009855,-1300.0,0.00033,30]
[343623333,1732757009879,-1300.0,0.00033,30]
[343623334,1732757009903,-2400.0,0.00033,30]
[343623335,1732757009930,-500.0,0.00033,30]
[343623336,1732757009955,-151.0,0.00033753,120]
[343623337,1732757009979,-311.4330643,0.00033781,30]
[343623338,1732757010004,-458.3284193,0.00033781,30]
[343623339,1732757010028,-171.9579254,0.00033781,30]
[343623340,1732757010053,-212.8417378,0.00033781,30]
[343623341,1732757010077,-152.449411,0.00033781,30]
[343623342,1732757010101,-212.8417378,0.00033781,30]
[343623343,1732757010125,-216.6354854,0.00033781,30]
[343623344,1732757010148,-304.898822,0.00033781,30]
[343623345,1732757010172,-304.898822,0.00033781,30]
[343623346,1732757010198,-359.9,0.000338,31]
[343623347,1732757010223,-359.9,0.000338,31]
[343623348,1732757010250,-359.9,0.000338,31]
[343623349,1732757010276,-359.9,0.000338,31]
[343623350,1732757010302,-359.9,0.000338,31]
[343623351,1732757010327,-359.9,0.000338,31]
[343623352,1732757010353,-359.9,0.000338,31]
[343623353,1732757010378,-359.9,0.000338,31]
[343623354,1732757010402,-359.9,0.000338,31]
[343623355,1732757010428,-359.9,0.000338,31]
[343623356,1732757010453,-359.9,0.000338,31]
[343623357,1732757010477,-359.9,0.000338,31]
[343623358,1732757010504,-359.9,0.000338,31]
[343623359,1732757010529,-359.9,0.000338,31]
[343623360,1732757010662,-359.9,0.000338,31]
[343623361,1732757010687,-359.9,0.000338,31]
[343623362,1732757010713,-359.9,0.000338,31]
[343623363,1732757010737,-359.9,0.000338,31]
[343623364,1732757010764,-359.9,0.000338,31]
[343623365,1732757010788,-359.9,0.000338,31]
[343623366,1732757010813,-359.9,0.000338,31]
[343623367,1732757010838,-359.9,0.000338,31]
[343623368,1732757010864,-359.9,0.000338,31]
[343623369,1732757010889,-359.9,0.000338,31]
[343623370,1732757010913,-1398.43650053,0.00033978,32]
[343623371,1732757010937,-500.0,0.00034,120]
[343623372,1732757010962,-108818.45008735,0.00034,120]
[343623373,1732757010990,-151.0,0.00034,120]
[343623374,1732757011014,-380.827508,0.00034,30]
[343623375,1732757011039,-166.396,0.0003414,60]
[343623376,1732757011064,-277.0,0.0003431,39]
[343623377,1732757011090,-359.9,0.000348,31]
[343623378,1732757011115,-359.9,0.000348,31]
[343623380,1732757011141,-359.9,0.000348,31]
[343623381,1732757011166,-359.9,0.000348,31]
[343623382,1732757011193,-359.9,0.000348,31]
[343623383,1732757011220,-359.9,0.000348,31]
[343623384,1732757011247,-359.9,0.000348,31]
[343623385,1732757011274,-359.9,0.000348,31]
[343623386,1732757011301,-359.9,0.000348,31]
[343623387,1732757011331,-359.9,0.000348,31]
[343623388,1732757011359,-359.9,0.000348,31]
[343623389,1732757011385,-359.9,0.000348,31]
[343623390,1732757011412,-359.9,0.000348,31]
[343623391,1732757011438,-359.9,0.000348,31]
[343623392,1732757011464,-359.9,0.000348,31]
[343623393,1732757011492,-359.9,0.000348,31]
[343623394,1732757011516,-200.0,0.00035,120]
[343623395,1732757011541,-199.999999,0.00035,120]
[343623396,1732757011564,-479.94871769,0.00035,60]
[343623397,1732757011588,-150.0,0.00035,69]
[343623398,1732757011613,-2848.3769,0.0003516,120]
[343623399,1732757011640,-207.81155,0.000354,120]
[343623400,1732757011664,-600.0,0.00035616,60]
[343623401,1732757011688,-1000.0,0.00035616,120]
[343623402,1732757011714,-10000.0,0.00035655,30]
[343623403,1732757011740,-306.0,0.00035701,30]
[343623404,1732757011764,-150.0,0.00035833,120]
[343623405,1732757011789,-1000.0,0.0003589,120]
[343623406,1732757011813,-195.3441705,0.00035975,30]
[343623407,1732757011837,-304.898822,0.00035975,30]
[343623408,1732757011861,-1484.11207871,0.00036,30]
[343623409,1732757011886,-500.0,0.00036,120]
[343623410,1732757011910,-1460.0,0.00036,39]
[343623411,1732757011935,-5374.09462167,0.00036,30]
[343623412,1732757011960,-151.4,0.00036,86]
[343623413,1732757011984,-250.0,0.00036,30]
[343623414,1732757012009,-600.0,0.00036164,60]
[343623415,1732757012034,-1000.0,0.00036164,120]
[343623416,1732757012059,-150.0,0.00036309,120]
[343623417,1732757012086,-1000.0,0.00036438,120]
[343623418,1732757012110,-600.0,0.00036712,60]
[343623419,1732757012136,-1000.0,0.00036712,120]
[343623420,1732757012160,-808.37035795,0.00036986,120]
[343623421,1732757012183,-3776.37421243,0.00037,30]
[343623422,1732757012206,-600.0,0.0003726,60]
[343623423,1732757012231,-166.465,0.0003728,120]
[343623424,1732757012259,-201.0,0.000375,112]
[343623425,1732757012286,-151.0,0.00037507,120]
[343623426,1732757012313,-457.348233,0.00037666,30]
[343623427,1732757012339,-600.0,0.00037808,60]
[343623428,1732757012364,-500.0,0.00038,120]
[343623429,1732757012389,-151.0,0.00038,120]
[343623430,1732757012416,-250.0,0.00038,30]
[343623431,1732757012440,-5000.0,0.00038328,30]
[343623432,1732757012468,-1613.0,0.0003858,30]
[343623433,1732757012493,-1023.62534824,0.000387,120]
[343623434,1732757012517,-2636.1,0.00038715,30]
[343623435,1732757012540,-600.0,0.00038904,60]
[343623436,1732757012562,-1528.0,0.00039,30]
[343623437,1732757012584,-10166.0,0.00039,120]
[343623438,1732757012607,-150.0,0.00039145,120]
[343623439,1732757012631,-4958.06021646,0.000392,30]
[343623440,1732757012654,-1000.0,0.000395,120]
[343623441,1732757012678,-48581.49503253,0.000396,60]
[343623442,1732757012701,-1630.90757654,0.0003988,30]
[343623443,1732757012727,-1435.00432223,0.00039898,40]
[343623444,1732757012753,-3000.0,0.000399,120]
[343623445,1732757012776,-6573.50370208,0.0003999,120]
[343623446,1732757012799,-600.0,0.0004,60]
[343623447,1732757012823,-1516.1401211,0.0004,60]
[343623448,1732757012846,-793.04007845,0.0004,120]
[343623449,1732757012869,-3813.0,0.0004,120]
[343623450,1732757012892,-3816.08163828,0.0004,120]
[343623451,1732757012915,-3118.253448,0.0004,60]
[343623452,1732757012940,-3435.02110533,0.0004,120]
[343623453,1732757012966,-5935.32982178,0.0004,120]
[343623454,1732757012990,-250.0,0.0004,30]
[343623455,1732757013016,-2848.3769,0.00040183,120]
[343623456,1732757013040,-1000.0,0.00040999,120]
[343623457,1732757013064,-2078.51362055,0.00041,120]
[343623458,1732757013090,-500.0,0.00041,120]
[343623459,1732757013114,-152.0,0.00041041,31]
[343623460,1732757013138,-152.0,0.00041041,31]
[343623461,1732757013163,-1000.0,0.00041095,120]
[343623462,1732757013188,-1006.2573258,0.00041095,120]
[343623463,1732757013219,-1585.36,0.00041096,30]
[343623468,1732757215546,232.45503012,0.00026,60]
[343623469,1732757245141,-246.78,0.00023946,3]
[343623470,1732757245165,-493.56,0.00023946,3]
[343623471,1732757245202,-370.17,0.00023946,3]
[343623472,1732757245225,-185.08,0.00023946,3]
[343623473,1732757245248,-112.91048593,0.00023946,3]
[343623486,1732757322944,533.64194022,0.000198,2]
[343625231,1732757483563,3005.3522776,0.00025999,60]
[343625233,1732757544805,159.52781,0.00013973,2]
[343625234,1732757545022,159.52781,0.00020447,2]
[343625241,1732758155619,8116.00348774,0.00020203,2]
[343625245,1732758439100,249.75,0.00022002,2]
[343625247,1732758447961,163.17627,0.00013973,2]
[343625248,1732758448184,163.17627,0.00020807,2]
[343625268,1732758632835,-206.5566773,0.00023131,2]
[343625269,1732758632847,-300.0,0.00023855,2]
[343625270,1732758632858,-300.0,0.00023855,2]
[343625271,1732758632868,-205.0,0.00023855,2]
[343625272,1732758632878,-284.3936811,0.00023855,2]
[343625273,1732758632890,-313.09582311,0.00023856,2]
[343625274,1732758632900,-346.98938974,0.00023856,2]
[343625275,1732758632911,-759.41979388,0.00023856,2]
[343625508,1732758644673,-25053.79197601,0.00023856,2]
[343625510,1732758644685,-1878.38297046,0.00023856,2]
[343625607,1732758956098,1057.24628424,0.00022,2]
[343625616,1732759281894,836.23,0.00026,60]
[343625694,1732759371123,163.17627,0.00013973,2]
[343625695,1732759371342,163.17627,0.00021661,2]
[343625809,1732759833178,-174.734084,0.00023,5]
[343625810,1732759833188,-2000.00000099,0.000235,2]
[343625811,1732759833199,-150.01,0.00024055,2]
[343625812,1732759833209,-1059.66751484,0.00024055,2]
[343625818,1732759839073,-2142.57233941,0.00024055,2]
[343625820,1732759839083,-167.132589,0.00024287,2]
[343625822,1732759839096,-300.0,0.00024656,2]
[343625823,1732759839107,-300.0,0.00024656,2]
[343625824,1732759839116,-504.14825548,0.00024657,3]
[343625825,1732759839128,-500.8022236,0.00024657,3]
[343625826,1732759839143,-500.0,0.00024657,3]
[343625827,1732759839153,-500.0,0.00024657,3]
[343625828,1732759839163,-500.0,0.00024657,3]
[343625829,1732759839174,-500.0,0.00024657,3]
[343625830,1732759839184,-500.0,0.00024657,3]
[343625831,1732759839194,-500.0,0.00024657,3]
[343625832,1732759839205,-500.0,0.00024657,3]
[343625833,1732759839215,-440.84947076,0.00024657,3]
[343625834,1732759839226,-611.11573253,0.00024657,3]
[343625835,1732759839236,-477.07946934,0.00024657,3]
[343625836,1732759839246,-518.26143663,0.00024657,3]
[343625837,1732759839256,-511.05489969,0.00024657,3]
[343625838,1732759839265,-507.78439368,0.00024657,3]
[343625839,1732759839274,-1000.0,0.00025,5]